fUSD/lending_fUSD_20240423
["ID","MTS","AMOUNT","RATE_DAILY","PERIOD"]
[323289215,1713875449844,-500.0,0.000117,2]
[323289216,1713875449853,-196.12,0.000117,2]
[323289217,1713875449862,-500.0,0.000117,2]
[323289218,1713875449873,-401.0,0.000117,2]
[323289219,1713875449883,-531.93,0.000117,2]
[323289220,1713875449893,-500.0,0.000117,2]
[323289221,1713875449904,-312.22,0.000117,2]
[323289222,1713875449914,-500.0,0.000117,2]
[323289223,1713875449924,-500.0,0.000117,2]
[323289224,1713875449934,-500.0,0.000117,2]
[323289225,1713875449947,-642.2,0.000117,2]
[323289226,1713875449957,-500.0,0.000117,2]
[323289227,1713875449966,-500.0,0.000117,2]
[323289228,1713875449976,-500.0,0.000117,2]
[323289229,1713875449985,-500.0,0.000117,2]
[323289230,1713875449995,-500.0,0.000117,2]
[323289231,1713875450004,-673.87,0.000117,2]
[323289232,1713875450013,-500.0,0.000117,2]
[323289233,1713875450022,-500.0,0.000117,2]
[323289234,1713875450032,-505.37,0.000117,2]
[323289235,1713875450041,-500.0,0.000117,2]
[323289236,1713875450050,-500.0,0.000117,2]
[323289237,1713875450060,-304.03,0.000117,2]
[323289238,1713875450070,-509.24,0.000117,2]
[323289239,1713875450079,-500.0,0.000117,2]
[323289240,1713875450089,-500.0,0.000117,2]
[323289241,1713875450098,-595.86,0.000117,2]
[323289242,1713875450107,-500.0,0.000117,2]
[323289243,1713875450116,-500.0,0.000117,2]
[323289244,1713875450126,-500.0,0.000117,2]
[323289245,1713875450137,-500.0,0.000117,2]
[323289246,1713875450146,-500.0,0.000117,2]
[323289247,1713875450156,-500.0,0.000117,2]
[323289248,1713875450165,-572.18,0.000117,2]
[323289249,1713875450175,-500.0,0.000117,2]
[323289250,1713875450185,-500.0,0.000117,2]
[323289251,1713875450195,-500.0,0.000117,2]
[323289252,1713875450204,-500.0,0.000117,2]
[323289253,1713875450213,-500.0,0.000117,2]
[323289254,1713875450222,-500.0,0.000117,2]
[323289255,1713875450232,-500.0,0.000117,2]
[323289256,1713875450241,-500.0,0.000117,2]
[323289257,1713875450250,-500.0,0.000117,2]
[323289258,1713875450260,-500.0,0.000117,2]
[323289259,1713875450269,-500.0,0.000117,2]
[323289260,1713875450279,-500.0,0.000117,2]
[323289261,1713875450288,-311.43,0.000117,2]
[323289262,1713875450298,-500.0,0.000117,2]
[323289263,1713875450307,-500.0,0.000117,2]
[323289264,1713875450316,-363.31,0.000117,2]
[323289265,1713875450326,-559.35,0.000117,2]
[323289266,1713875450335,-500.0,0.000117,2]
[323289267,1713875450345,-500.0,0.000117,2]
[323289268,1713875450355,-494.47,0.000117,2]
[323289269,1713875450364,-400.49,0.000117,2]
[323289270,1713875450374,-500.0,0.000117,2]
[323289271,1713875450383,-595.62,0.000117,2]
[323289272,1713875450393,-500.0,0.000117,2]
[323289273,1713875450402,-500.0,0.000117,2]
[323289274,1713875450412,-647.7,0.000117,2]
[323289275,1713875450422,-500.0,0.000117,2]
[323289276,1713875450431,-251.53,0.000117,2]
[323289277,1713875450441,-500.0,0.000117,2]
[323289278,1713875450451,-500.0,0.000117,2]
[323289279,1713875450460,-500.0,0.000117,2]
[323289280,1713875450469,-728.54,0.000117,2]
[323289281,1713875450479,-449.79,0.000117,2]
[323289282,1713875450489,-846.85,0.000117,2]
[323289283,1713875450500,-489.82,0.000117,2]
[323289284,1713875450509,-500.0,0.000117,2]
[323289285,1713875450519,-500.0,0.000117,2]
[323289286,1713875450529,-698.03,0.000117,2]
[323289287,1713875450538,-500.0,0.000117,2]
[323289288,1713875450548,-575.33,0.000117,2]
[323289289,1713875450558,-406.74,0.000117,2]
[323289290,1713875450568,-551.67128329,0.000117,2]
[323289291,1713875450578,-500.0,0.000117,2]
[323289292,1713875450587,-500.0,0.000117,2]
[323289293,1713875450597,-500.0,0.000117,2]
[323289294,1713875450607,-755.17,0.000117,2]
[323289295,1713875450617,-500.0,0.000117,2]
[323289296,1713875450626,-587.05,0.000117,2]
[323289297,1713875450635,-500.0,0.000117,2]
[323289298,1713875450645,-500.0,0.000117,2]
[323289299,1713875450655,-623.86,0.000117,2]
[323289300,1713875450664,-523.37,0.000117,2]
[323289301,1713875450674,-500.0,0.000117,2]
[323289302,1713875450683,-500.0,0.000117,2]
[323289303,1713875450692,-500.0,0.000117,2]
[323289304,1713875450702,-500.0,0.000117,2]
[323289305,1713875450711,-706.95,0.000117,2]
[323289306,1713875450720,-700.0,0.000117,4]
[323289307,1713875450730,-500.0,0.000117,2]
[323289308,1713875450739,-2231.55,0.000117,2]
[323289309,1713875450749,-500.0,0.000117,2]
[323289310,1713875450758,-500.0,0.000117,2]
[323289311,1713875450768,-890.91,0.000117,2]
[323289312,1713875450777,-500.0,0.000117,2]
[323289313,1713875450786,-500.0,0.000117,2]
[323289314,1713875450796,-500.0,0.000117,2]
[323289315,1713875450805,-500.0,0.000117,2]
[323289316,1713875450816,-500.0,0.000117,2]
[323289317,1713875450832,-500.0,0.000117,2]
[323289318,1713875450841,-500.0,0.000117,2]
[323289319,1713875450851,-500.0,0.000117,2]
[323289320,1713875450860,-7146.79,0.000117,2]
[323289321,1713875450871,-1142.03,0.000117,2]
[323289322,1713875450881,-500.0,0.000117,2]
[323289323,1713875450890,-1489.24,0.000117,2]
[323289324,1713875450899,-500.0,0.000117,2]
[323289325,1713875450909,-500.0,0.000117,2]
[323289326,1713875450918,-500.0,0.000117,2]
[323289327,1713875450927,-500.0,0.000117,2]
[323289328,1713875450936,-155.71,0.000117,2]
[323289329,1713875450947,-500.0,0.000117,2]
[323289330,1713875450957,-1240.75,0.000117,2]
[323289331,1713875450966,-500.0,0.000117,2]
[323289332,1713875450975,-500.0,0.000117,2]
[323289333,1713875450984,-213.43,0.000117,2]
[323289334,1713875450994,-500.0,0.000117,2]
[323289335,1713875451003,-545.68,0.000117,2]
[323289336,1713875451013,-500.0,0.000117,2]
[323289337,1713875451022,-500.72,0.000117,2]
[323289338,1713875451031,-500.0,0.000117,2]
[323289339,1713875451041,-500.0,0.000117,2]
[323289340,1713875451050,-500.0,0.000117,2]
[323289341,1713875451060,-500.0,0.000117,2]
[323289342,1713875451069,-500.0,0.000117,2]
[323289343,1713875451079,-404.36451138,0.00011702,2]
[323289344,1713875451089,-683.13738738,0.00011702,2]
[323289345,1713875451099,-212.00789701,0.00011702,2]
[323289346,1713875451108,-240.07518187,0.00011702,2]
[323289347,1713875451118,-589.28949907,0.00011702,2]
[323289348,1713875451127,-171.06528897,0.00011702,2]
[323289349,1713875451137,-191.41393423,0.00011702,2]
[323289350,1713875451147,-156.40997702,0.00011702,2]
[323289351,1713875451157,-174.73097826,0.00011702,2]
[323289352,1713875451166,-155.60206756,0.00011702,2]
[323289353,1713875451176,-203.79893697,0.00011702,2]
[323289354,1713875451186,-268.00161356,0.00011702,2]
[323289355,1713875451195,-1122.2840628,0.00011702,2]
[323289356,1713875451206,-254.11589084,0.00011702,2]
[323289357,1713875451216,-264.01498696,0.00011702,2]
[323289358,1713875451226,-1297.79891384,0.00011702,2]
[323289359,1713875451236,-155.0,0.00011702,2]
[323289360,1713875451245,-205.99988575,0.00011702,2]
[323289361,1713875451255,-156.17458479,0.00011702,2]
[323289362,1713875451265,-220.78,0.00011703,2]
[323289363,1713875451275,-549.78324722,0.00011703,2]
[323289364,1713875451284,-500.0,0.00011703,2]
[323289365,1713875451293,-496.91,0.00011703,2]
[323289366,1713875451303,-500.0,0.00011703,2]
[323289367,1713875451313,-500.0,0.00011703,2]
[323289368,1713875451322,-905.42,0.00011703,2]
[323289369,1713875451332,-500.0,0.00011703,2]
[323289370,1713875451342,-500.0,0.00011703,2]
[323289371,1713875451351,-500.0,0.00011703,2]
[323289372,1713875451361,-500.0,0.00011703,2]
[323289373,1713875451371,-500.0,0.00011703,2]
[323289374,1713875451380,-500.0,0.00011703,2]
[323289375,1713875451390,-500.0,0.00011703,2]
[323289376,1713875451399,-500.0,0.00011703,2]
[323289377,1713875451408,-869.47,0.00011703,2]
[323289378,1713875451418,-500.0,0.00011703,2]
[323289379,1713875451427,-500.0,0.00011703,2]
[323289380,1713875451437,-1279.15,0.00011703,2]
[323289381,1713875451446,-500.0,0.00011703,2]
[323289382,1713875451456,-1257.72,0.00011703,2]
[323289383,1713875451465,-500.0,0.00011703,2]
[323289384,1713875451475,-500.0,0.00011703,2]
[323289385,1713875451484,-500.0,0.00011703,2]
[323289386,1713875451494,-500.0,0.00011703,2]
[323289387,1713875451503,-333.53326247,0.00011703,2]
[323289388,1713875451513,-500.0,0.00011703,2]
[323289389,1713875451522,-500.0,0.00011703,2]
[323289390,1713875451534,-500.0,0.00011703,2]
[323289391,1713875451543,-500.0,0.00011703,2]
[323289392,1713875451553,-500.0,0.00011703,2]
[323289393,1713875451562,-500.0,0.00011703,2]
[323289394,1713875451571,-500.0,0.00011703,2]
[323289395,1713875451580,-500.0,0.00011703,2]
[323289396,1713875451589,-500.0,0.00011703,2]
[323289397,1713875451598,-500.0,0.00011703,2]
[323289398,1713875451607,-500.0,0.00011703,2]
[323289399,1713875451617,-474.76086925,0.00011703,2]
[323289400,1713875451625,-500.0,0.00011703,2]
[323289401,1713875451634,-500.0,0.00011703,2]
[323289402,1713875451643,-500.0,0.00011703,2]
[323289403,1713875451653,-500.0,0.00011703,2]
[323289404,1713875451662,-518.22,0.00011703,2]
[323289405,1713875451672,-500.0,0.00011703,2]
[323289406,1713875451685,-500.0,0.00011703,2]
[323289407,1713875451698,-500.0,0.00011703,2]
[323289408,1713875451710,-500.0,0.00011703,2]
[323289409,1713875451722,-500.0,0.00011703,2]
[323289410,1713875451733,-500.0,0.00011703,2]
[323289411,1713875451744,-500.0,0.00011703,2]
[323289412,1713875451756,-1513.51,0.00011703,2]
[323289413,1713875451768,-500.0,0.00011703,2]
[323289414,1713875451780,-500.0,0.00011703,2]
[323289415,1713875451791,-500.0,0.00011703,2]
[323289416,1713875451803,-500.0,0.00011703,2]
[323289417,1713875451815,-462.41,0.00011703,2]
[323289418,1713875451831,-500.0,0.00011703,2]
[323289419,1713875451843,-500.0,0.00011703,2]
[323289420,1713875451855,-500.0,0.00011703,2]
[323289421,1713875451866,-1096.81,0.00011703,2]
[323289422,1713875451876,-500.0,0.00011703,2]
[323289423,1713875451887,-500.0,0.00011703,2]
[323289424,1713875451899,-500.0,0.00011703,2]
[323289425,1713875451911,-500.0,0.00011703,2]
[323289426,1713875451922,-500.0,0.00011703,2]
[323289427,1713875451933,-500.0,0.00011703,2]
[323289428,1713875451945,-500.0,0.00011704,2]
[323289429,1713875451956,-515.76,0.00011704,2]
[323289430,1713875451967,-500.0,0.00011704,2]
[323289431,1713875451981,-500.0,0.00011704,2]
[323289432,1713875451991,-232.94,0.00011704,2]
[323289433,1713875452001,-410.39,0.00011704,2]
[323289434,1713875452011,-500.0,0.00011704,2]
[323289435,1713875452025,-500.0,0.00011704,2]
[323289436,1713875452036,-500.0,0.00011704,2]
[323289437,1713875452047,-504.42191361,0.00011704,2]
[323289438,1713875452059,-500.0,0.00011704,2]
[323289439,1713875452071,-589.19,0.00011704,2]
[323289440,1713875452082,-500.0,0.00011704,2]
[323289441,1713875452092,-500.0,0.00011704,2]
[323289442,1713875452104,-500.0,0.00011704,2]
[323289443,1713875452114,-500.0,0.00011704,2]
[323289444,1713875452126,-500.0,0.00011704,2]
[323289445,1713875452138,-500.0,0.00011704,2]
[323289446,1713875452149,-626.95,0.00011704,2]
[323289447,1713875452160,-526.59,0.00011704,2]
[323289448,1713875452172,-199.70481969,0.00011704,2]
[323289449,1713875452185,-500.0,0.00011704,2]
[323289450,1713875452197,-525.91,0.00011704,2]
[323289451,1713875452210,-500.0,0.00011704,2]
[323289452,1713875452222,-243.46,0.00011704,2]
[323289453,1713875452234,-551.43,0.00011704,2]
[323289454,1713875452245,-500.0,0.00011704,2]
[323289455,1713875452255,-500.0,0.00011704,2]
[323289456,1713875452264,-500.0,0.00011704,2]
[323289457,1713875452275,-500.0,0.00011704,2]
[323289458,1713875452286,-500.0,0.00011704,2]
[323289459,1713875452297,-506.61191242,0.00011704,2]
[323289460,1713875452309,-500.0,0.00011704,2]
[323289461,1713875452319,-500.0,0.00011704,2]
[323289462,1713875452329,-500.0,0.00011704,2]
[323289463,1713875452341,-588.93,0.00011704,2]
[323289464,1713875452353,-596.08,0.00011704,2]
[323289465,1713875452363,-542.16,0.00011704,2]
[323289466,1713875452373,-500.0,0.00011704,2]
[323289467,1713875452383,-500.0,0.00011704,2]
[323289468,1713875452394,-500.0,0.00011704,2]
[323289469,1713875452406,-500.0,0.00011704,2]
[323289470,1713875452417,-500.0,0.00011704,2]
[323289471,1713875452428,-576.46,0.00011704,2]
[323289472,1713875452440,-500.0,0.00011704,2]
[323289473,1713875452452,-500.0,0.00011704,2]
[323289474,1713875452463,-500.0,0.00011704,2]
[323289475,1713875452474,-500.0,0.00011704,2]
[323289476,1713875452486,-500.0,0.00011704,2]
[323289477,1713875452496,-500.0,0.00011704,2]
[323289478,1713875452507,-500.0,0.00011704,2]
[323289479,1713875452518,-500.0,0.00011704,2]
[323289480,1713875452530,-618.17,0.00011704,2]
[323289481,1713875452541,-500.0,0.00011704,2]
[323289482,1713875452551,-465.46,0.00011704,2]
[323289483,1713875452562,-500.0,0.00011704,2]
[323289484,1713875452576,-557.41977362,0.00011704,2]
[323289485,1713875452587,-500.0,0.00011704,2]
[323289486,1713875452597,-500.0,0.00011704,2]
[323289487,1713875452608,-500.0,0.00011704,2]
[323289488,1713875452618,-500.0,0.00011704,2]
[323289489,1713875452629,-567.14,0.00011704,2]
[323289490,1713875452639,-500.0,0.00011704,2]
[323289491,1713875452650,-231.39,0.00011704,2]
[323289492,1713875452661,-500.0,0.00011704,2]
[323289493,1713875452671,-661.92,0.00011704,2]
[323289494,1713875452682,-500.0,0.00011704,2]
[323289495,1713875452694,-500.0,0.00011704,2]
[323289496,1713875452704,-500.0,0.00011704,2]
[323289497,1713875452714,-317.93,0.00011704,2]
[323289498,1713875452725,-500.0,0.00011704,2]
[323289499,1713875452736,-607.34,0.00011704,2]
[323289500,1713875452746,-500.0,0.00011704,2]
[323289501,1713875452757,-1220.0,0.00011735,2]
[323289502,1713875452768,-1100.0,0.000118,4]
[323289503,1713875452780,-462.0,0.00011815,2]
[323289504,1713875452793,-2295.0,0.00011815,2]
[323289505,1713875452804,-1055.0,0.00011815,2]
[323289506,1713875452816,-9562.22371409,0.00011824,2]
[323289507,1713875452830,-156.02885865,0.00011824,2]
[323289508,1713875452841,-542.0,0.0001184,2]
[323289509,1713875452852,-1256.0,0.0001184,2]
[323289510,1713875452863,-185.05293409,0.00011847,2]
[323289511,1713875452874,-1500.0,0.000119,4]
[323289512,1713875452885,-150.0,0.00011911,2]
[323289513,1713875452896,-9562.22371406,0.00011922,2]
[323289514,1713875452910,-610.0,0.00011924,2]
[323289515,1713875452921,-258.0,0.00011924,2]
[323289516,1713875452932,-437.0,0.00011924,2]
[323289517,1713875452946,-807.0,0.00011924,2]
[323289518,1713875452957,-1858.0,0.00011924,2]
[323289519,1713875452968,-150.0,0.00011924,2]
[323289520,1713875452978,-3120.0,0.00011924,2]
[323289521,1713875452989,-402.0,0.00011924,2]
[323289522,1713875453000,-1474.0,0.00011924,2]
[323289523,1713875453011,-2445.0,0.00011924,2]
[323289524,1713875453022,-214.0,0.00011924,2]
[323289525,1713875453033,-1641.0,0.00011924,2]
[323289526,1713875453044,-150.0,0.00011924,2]
[323289527,1713875453055,-1140.0,0.00011924,2]
[323289528,1713875453066,-195.0,0.00011924,2]
[323289529,1713875453077,-403.41223393,0.00011924,2]
[323289530,1713875454166,150.0,0.00011178,2]
[323289531,1713875460959,150.0,0.00011181,2]
[323289532,1713875480028,737.6,0.00010844,2]
[323289536,1713875582091,987.81,0.00010623,2]
[323289537,1713875721742,157.06353671,0.00011105,2]
[323289538,1713875765106,161.14,0.0001062,2]
[323289539,1713875765346,161.14,0.00010676,2]
[323289540,1713875765557,161.14,0.00010731,2]
[323289541,1713875766008,161.14,0.00010786,2]
[323289542,1713875766261,161.14,0.00010842,2]
[323289543,1713875766508,161.14,0.00010897,2]
[323289544,1713875766758,161.14,0.00010952,2]
[323289545,1713875767663,161.14,0.00010702,2]
[323289546,1713875767890,161.14,0.00010814,2]
[323289547,1713875768276,161.14,0.00010925,2]
[323289548,1713875768341,161.14,0.00011037,2]
[323289549,1713875799463,621.65478012,0.000112,2]
[323289551,1713875807157,4583.44785109,0.000112,2]
[323289552,1713875865973,323.88214044,0.000112,2]
[323289553,1713875872246,1887.64,0.00010524,2]
[323289554,1713875878413,-155.0,0.00011201,2]
[323289555,1713875878437,-150.0,0.00011202,2]
[323289556,1713875878460,-2321.74176097,0.00011205,2]
[323289557,1713875878485,-2072.52549474,0.00011206,2]
[323289558,1713875878507,-355.73274429,0.00011208,2]
[323289559,1713875885819,3670.08,0.000112,2]
[323289560,1713875900491,150.11,0.00010546,2]
[323289561,1713875900757,150.11,0.00010549,2]
[323289562,1713875900984,150.11,0.00010553,2]
[323289563,1713875901186,150.11,0.00010557,2]
[323289564,1713875901421,150.11,0.00010561,2]
[323289565,1713875901667,150.11,0.00010564,2]
[323289566,1713875901915,150.11,0.00010568,2]
[323289567,1713875902372,150.11,0.00010572,2]
[323289568,1713875902537,150.11,0.00010576,2]
[323289569,1713875902896,150.11,0.00010579,2]
[323289570,1713875903273,150.11,0.00010583,2]
[323289571,1713875903391,150.11,0.00010587,2]
[323289572,1713875903606,150.11,0.00010591,2]
[323289573,1713875903837,150.11,0.00010594,2]
[323289574,1713875904074,150.11,0.00010598,2]
[323289575,1713875924162,500.0,0.00010523,2]
[323289576,1713875977221,409.92,0.00010484,2]
[323289577,1713875985880,175.02,0.00011032,2]
[323289578,1713875990945,23900.0,0.00010494,2]
[323289579,1713875992997,323.88214044,0.000112,2]
[323289580,1713876009005,323.88214044,0.000112,2]
[323289581,1713876012184,161.00693239,0.00011191,2]
[323289582,1713876025473,182.26159151,0.00011107,2]
[323289583,1713876030893,500.0,0.000112,2]
[323289584,1713876031005,323.88214044,0.000112,2]
[323289585,1713876034553,2078.9176763,0.00025108,120]
[323289586,1713876037220,571.82,0.000112,2]
[323289587,1713876048761,500.0,0.000112,2]
[323289588,1713876049378,644.79,0.000112,2]
[323289589,1713876052996,323.88214044,0.000112,2]
[323289590,1713876060939,244.7,8.561e-05,2]
[323289591,1713876061243,244.7,0.00010825,2]
[323289592,1713876070535,1196.53,0.000112,2]
[323289593,1713876070997,323.88214044,0.000112,2]
[323289594,1713876081588,734.47,0.000112,2]
[323289595,1713876091165,323.88214044,0.000112,2]
[323289596,1713876100328,500.0,0.000112,2]
[323289597,1713876101930,500.0,0.000112,2]
[323289598,1713876106352,500.0,0.000112,2]
[323289599,1713876108995,323.88214044,0.000112,2]
[323289600,1713876122220,500.0,0.000112,2]
[323289601,1713876123460,150.0,0.000112,2]
[323289602,1713876124999,323.88214044,0.000112,2]
[323289603,1713876128748,420.56,0.000112,2]
[323289604,1713876132591,500.0,0.000112,2]
[323289605,1713876135640,500.0,0.000112,2]
[323289606,1713876143054,317.66559266,0.000112,2]
[323289607,1713876143536,500.0,0.000112,2]
[323289608,1713876154104,500.0,0.000112,2]
[323289609,1713876160782,182.26159151,0.00011107,2]
[323289610,1713876174126,500.0,0.000112,2]
[323289611,1713876178111,500.0,0.000112,2]
[323289612,1713876181545,743.09,0.000112,2]
[323289613,1713876198136,500.0,0.000112,2]
[323289614,1713876214153,394.42919051,0.00011101,2]
[323289615,1713876219470,500.0,0.000112,2]
[323289616,1713876225311,1000.0,0.00011101,2]
[323289617,1713876227395,500.0,0.000112,2]
[323289618,1713876251148,500.0,0.000112,2]
[323289619,1713876257483,500.0,0.000112,2]
[323289620,1713876262452,500.0,0.000112,2]
[323289621,1713876265595,832.84,0.000112,2]
[323289622,1713876278637,2494.02,0.000112,2]
[323289623,1713876284432,1236.58,0.000112,2]
[323289624,1713876287377,500.0,0.000112,2]
[323289625,1713876288613,500.0,0.000112,2]
[323289626,1713876293472,500.0,0.000112,2]
[323289627,1713876294345,500.0,0.000112,2]
[323289628,1713876295067,500.0,0.000112,2]
[323289629,1713876300548,500.0,0.000112,2]
[323289630,1713876302419,1390.37,0.000112,2]
[323289631,1713876304814,500.0,0.000112,2]
[323289632,1713876309974,781.7,0.000112,2]
[323289633,1713876311009,484.27431722,0.000112,2]
[323289634,1713876313033,500.0,0.000112,2]
[323289635,1713876316876,15373.97,0.000112,2]
[323289636,1713876318466,500.0,0.000112,2]
[323289637,1713876318546,889.59,0.000112,2]
[323289638,1713876321304,500.0,0.000112,2]
[323289639,1713876322588,501.5,0.000112,2]
[323289640,1713876322719,500.0,0.000112,2]
[323289641,1713876323968,500.0,0.000112,2]
[323289642,1713876324428,627.76,0.000112,2]
[323289643,1713876325096,418.78369938,0.000112,2]
[323289644,1713876327232,5240.81,0.000112,2]
[323289645,1713876328422,6267.37,0.000112,2]
[323289646,1713876331016,500.0,0.000112,2]
[323289647,1713876331766,500.0,0.000112,2]
[323289648,1713876332928,500.0,0.000112,2]
[323289649,1713876333318,176.10559114,0.000112,2]
[323289650,1713876336540,500.0,0.000112,2]
[323289651,1713876339323,500.0,0.000112,2]
[323289652,1713876340265,500.0,0.000112,2]
[323289666,1713876343911,13579.62129132,0.00011189,2]
[323289667,1713876344985,500.0,0.000112,2]
[323289668,1713876345769,2102.64,0.000112,2]
[323289669,1713876347147,500.0,0.000112,2]
[323289670,1713876352248,157.51794099,0.000112,2]
[323289671,1713876354534,500.0,0.000112,2]
[323289672,1713876357346,762.86,0.000112,2]
[323289710,1713876362896,434.79587337,0.000112,2]
[323289711,1713876363762,3420.19,0.000112,2]
[323289712,1713876364115,500.0,0.000112,2]
[323289713,1713876368756,500.0,0.000112,2]
[323289714,1713876368984,500.0,0.000112,2]
[323289715,1713876371104,500.0,0.000112,2]
[323289716,1713876373542,500.0,0.000112,2]
[323289717,1713876374204,500.0,0.000112,2]
[323289719,1713876379734,500.0,0.000112,2]
[323289720,1713876382951,500.0,0.000112,2]
[323289721,1713876383887,541.27,0.000112,2]
[323289722,1713876385181,500.0,0.000112,2]
[323289723,1713876387171,759.33,0.000112,2]
[323289724,1713876388222,500.0,0.000112,2]
[323289725,1713876389594,836.9,0.000112,2]
[323289726,1713876393041,24647.51,0.000112,2]
[323289727,1713876394188,1817.28,0.000112,2]
[323289728,1713876398686,500.0,0.000112,2]
[323289729,1713876401655,500.0,0.000112,2]
[323289730,1713876403906,500.0,0.000112,2]
[323289731,1713876403959,2456.36,0.000112,2]
[323289733,1713876414519,582.44,0.000112,2]
[323289734,1713876415864,500.0,0.000112,2]
[323289735,1713876423548,500.0,0.000112,2]
[323289736,1713876429231,500.0,0.000112,2]
[323289737,1713876431574,500.0,0.000112,2]
[323289738,1713876435015,500.0,0.000112,2]
[323289739,1713876435302,500.0,0.000112,2]
[323289740,1713876436128,500.0,0.000112,2]
[323289741,1713876437813,500.0,0.000112,2]
[323289742,1713876439045,718.84,0.000112,2]
[323289743,1713876441713,500.0,0.000112,2]
[323289744,1713876444504,500.0,0.000112,2]
[323289745,1713876445729,500.0,0.000112,2]
[323289746,1713876446646,844.97,0.000112,2]
[323289747,1713876446894,600.93,0.000112,2]
[323289748,1713876451292,1213.4,0.000112,2]
[323289749,1713876458954,500.0,0.000112,2]
[323289750,1713876459269,500.0,0.000112,2]
[323289751,1713876460431,638.25,0.000112,2]
[323289752,1713876460541,672.06,0.00010486,2]
[323289753,1713876461101,500.0,0.000112,2]
[323289754,1713876461219,810.08,0.000112,2]
[323289755,1713876468717,937.21,0.000112,2]
[323289756,1713876472485,3390.87,0.000112,2]
[323289757,1713876477976,500.0,0.000112,2]
[323289758,1713876479063,500.0,0.000112,2]
[323289759,1713876481652,593.68,0.000112,2]
[323289760,1713876481919,500.0,0.000112,2]
[323289761,1713876483071,1258.09,0.00010488,2]
[323289762,1713876483396,1617.23,0.000112,2]
[323289763,1713876484441,1185.05,0.000112,2]
[323289764,1713876487078,500.0,0.000112,2]
[323289765,1713876489749,500.0,0.000112,2]
[323289766,1713876492453,500.0,0.000112,2]
[323289767,1713876492689,182.50260112,0.000112,2]
[323289768,1713876493085,500.0,0.000112,2]
[323289769,1713876493745,622.07,0.000112,2]
[323289770,1713876494172,23900.0,0.00010488,2]